bitfinex/quotes_ETHUSD_20220731
["timestamp","ask_amount","ask_price","bid_price","bid_amount"]
[1659303756947,0.0482162,1707.2,1706.8,2.89804672]
[1659303757540,0.22793897,1707.2,1706.8,2.89804672]
[1659303758003,0.77265332,1707.2,1706.8,2.89804672]
[1659303758742,0.82079048,1707.2,1706.8,2.89804672]
[1659303759942,0.82079048,1707.2,1706.8,2.84804672]
[1659303760705,0.82079048,1707.2,1706.8,2.89600625]
[1659303762053,0.32079048,1707.2,1706.8,2.89600625]
[1659303763057,0.04813459,1707.1,1706.8,2.89600625]
[1659303763209,0.04813459,1707.1,1706.8,0.04795953]
[1659303763409,0.04813459,1707.1,1706.9,2.89804672]
[1659303764660,0.04813459,1707.1,1706.8,2.94600625]
[1659303764811,0.04813459,1707.1,1706.8,0.04795953]
[1659303766411,3.15864894,1707.3,1706.8,0.04795953]
[1659303766613,6.12414672,1707.3,1706.8,0.04795953]
[1659303766923,0.04641399,1707.1,1706.8,0.04795953]
[1659303770316,0.04641399,1707.1,1706.8,2.94600625]
[1659303770545,0.04641399,1707.1,1706.9,2.89804672]
[1659303772262,0.04641399,1707.1,1707.0,0.34471435]
[1659303772599,0.04641399,1707.1,1707.0,3.24276107]
[1659303772778,0.04641399,1707.1,1707.0,0.34471435]
[1659303772947,0.04641399,1707.1,1706.9,0.04755599]
[1659303781885,2.94446071,1707.1,1706.9,0.04755599]
[1659303782058,3.24446071,1707.1,1706.9,0.04755599]
[1659303786345,6.54426071,1707.1,1706.9,0.04755599]
[1659303787247,6.10446071,1707.1,1706.9,0.04755599]
[1659303788092,3.20641399,1707.1,1706.9,0.04755599]
[1659303790991,3.20641399,1707.1,1706.7,0.34471435]
[1659303790992,10.39804672,1707.0,1706.5,0.05]
[1659303791164,10.39804672,1707.0,1706.3,0.05]
[1659303791165,6.33563969,1706.9,1706.3,0.05]
[1659303791368,7.5,1706.7,1706.1,0.05]
[1659303791583,7.5,1706.7,1705.9,0.05]
[1659303791584,0.07607613,1706.4,1705.9,0.05]
[1659303791786,0.07607613,1706.4,1705.8,0.007]
[1659303792180,0.07607613,1706.0,1705.6,0.05]
[1659303792405,7.57607613,1706.0,1705.3,0.05]
[1659303792583,7.57607613,1706.0,1705.2,0.05]
[1659303792584,0.77607613,1706.0,1705.2,0.05]
[1659303792792,0.77607613,1706.0,1704.9,2.8784]
[1659303792793,0.07607613,1705.4,1704.9,2.8784]
[1659303792955,0.07607613,1705.4,1704.6,0.4404]
[1659303792956,0.7,1705.3,1704.6,0.4404]
[1659303793174,0.7,1705.3,1704.5,2.7244]
[1659303793175,0.7,1705.3,1704.5,0.4405]
[1659303793375,0.7,1705.3,1704.4,0.00346221]
[1659303793376,1.4402,1705.3,1704.4,0.00346221]
[1659303793616,7.57607613,1705.2,1704.4,0.00346221]
[1659303793835,0.07607613,1705.2,1704.4,0.00346221]
[1659303794132,0.06907613,1704.9,1704.4,0.00346221]
[1659303794423,0.06907613,1704.9,1704.1,0.5813]
[1659303794617,0.11907613,1704.9,1704.1,0.5813]
[1659303794822,0.05,1704.9,1704.2,3.5]
[1659303795009,0.06907613,1704.4,1704.0,4.758]
[1659303795210,0.06907613,1704.2,1704.0,0.3]
[1659303795614,1.0,1704.1,1703.6,0.05]
[1659303795915,1.0,1704.1,1703.4,0.4407]
[1659303795916,1.0,1704.1,1703.4,0.05]
[1659303796125,0.06907613,1703.5,1703.0,0.4408]
[1659303796327,0.61,1703.8,1702.7,0.02324671]
[1659303796328,0.67907613,1703.6,1702.7,0.02324671]
[1659303796497,0.61,1703.4,1702.7,0.02324671]
[1659303796693,1.91,1703.4,1702.7,0.02324671]
[1659303797116,0.06907613,1703.3,1702.7,0.02324671]
[1659303797436,0.06907613,1703.3,1702.7,0.02667989]
[1659303797437,1.608,1703.2,1702.7,0.02667989]
[1659303797627,0.06907613,1702.9,1702.7,0.02667989]
[1659303797918,7.5,1702.9,1700.8,2.9996]
[1659303798129,0.05,1702.3,1702.2,3.5]
[1659303798295,0.35,1703.0,1701.8,0.05]
[1659303798492,7.5,1702.5,1701.8,0.05]
[1659303798728,7.5,1702.7,1702.0,3.5]
[1659303799035,0.05,1702.8,1702.0,3.5]
[1659303799185,0.05,1702.8,1702.2,3.5]
[1659303799387,0.05,1702.9,1702.3,0.34471435]
[1659303799622,0.05,1703.0,1702.3,0.34471435]
[1659303799829,0.15,1703.0,1702.3,0.34471435]
[1659303800029,7.5,1703.0,1702.3,0.34471435]
[1659303800326,0.05,1703.1,1702.3,0.34471435]
[1659303800523,0.05,1703.1,1702.3,3.34471435]
[1659303800760,0.2,1703.1,1702.3,3.34471435]
[1659303800915,0.05,1703.1,1702.7,3.5]
[1659303801117,7.5,1703.3,1702.7,3.84471435]
[1659303801318,0.04431978,1702.8,1702.7,3.84471435]
[1659303801617,0.04431978,1703.2,1702.7,6.84471435]
[1659303801818,13.50193511,1703.3,1702.8,3.0]
[1659303802263,0.04590782,1703.1,1702.8,3.0]
[1659303802646,0.04590782,1703.1,1702.7,0.34471435]
[1659303802822,0.04590782,1703.1,1702.9,2.89804672]
[1659303803026,0.04590782,1703.1,1703.0,6.74276107]
[1659303803228,0.04590782,1703.1,1703.0,9.74276107]
[1659303803746,0.05,1703.5,1703.1,1.2]
[1659303803914,7.55,1703.7,1703.3,6.39804672]
[1659303804270,0.05,1703.9,1703.4,2.89804672]
[1659303804418,7.8187,1704.2,1703.5,0.00287088]
[1659303804419,0.05,1704.1,1703.5,0.00287088]
[1659303804759,7.8187,1704.2,1703.5,0.00287088]
[1659303804760,7.8687,1704.2,1703.6,2.89804672]
[1659303805070,15.5276519,1704.3,1703.7,2.89804672]
[1659303805071,5.8444519,1704.3,1703.7,2.89804672]
[1659303805266,5.8444519,1704.3,1703.8,3.0]
[1659303805464,7.4,1704.5,1703.8,3.0]
[1659303805465,0.05,1704.5,1703.9,6.39804672]
[1659303805674,0.05,1704.7,1704.0,5.89804672]
[1659303805835,7.45,1704.8,1704.1,2.89804672]
[1659303806159,7.45,1704.8,1704.1,6.74276107]
[1659303806160,0.15,1704.8,1704.1,6.74276107]
[1659303806361,7.8403,1705.0,1704.4,3.5]
[1659303806565,9.0386,1705.1,1704.6,2.89804672]
[1659303806566,3.4483,1705.1,1704.6,2.89804672]
[1659303806722,6.26603275,1705.3,1704.6,3.24276107]
[1659303806928,6.26603275,1705.3,1704.7,2.89804672]
[1659303807136,0.04429035,1704.9,1704.7,2.89804672]
[1659303807669,0.04429035,1704.9,1704.8,0.34471435]
[1659303807819,0.04429035,1704.9,1704.8,6.24276107]
[1659303808016,0.04429035,1704.9,1704.8,9.74276107]
[1659303808264,0.04429035,1704.9,1704.8,16.03174543]
[1659303808469,0.04429035,1704.9,1704.8,16.08174543]
[1659303808667,9.0386,1705.8,1704.9,0.044]
[1659303808865,2.7156,1705.8,1705.3,2.89804672]
[1659303809111,7.4,1706.2,1705.4,3.24276107]
[1659303809282,7.4,1706.1,1705.6,2.89804672]
[1659303809489,17.7687,1706.3,1705.6,2.94722227]
[1659303809490,6.0487,1706.3,1705.6,2.94722227]
[1659303809671,6.0487,1706.3,1705.7,2.89804672]
[1659303809672,3.3277,1706.3,1705.7,2.89804672]
[1659303809871,7.89,1706.4,1705.7,2.89804672]
[1659303810071,7.4,1706.4,1705.7,6.39804672]
[1659303810314,7.4,1706.4,1705.8,2.89804672]
[1659303810515,0.05,1706.5,1705.7,0.34471435]
[1659303810820,7.4,1705.8,1705.6,2.94804672]
[1659303810984,0.05,1706.1,1705.6,2.89804672]
[1659303811317,7.4,1705.7,1705.6,2.89804672]
[1659303811521,7.4,1705.7,1705.5,2.89804672]
[1659303812058,7.55,1705.7,1705.4,0.44205866]
[1659303812645,0.2,1705.8,1705.1,0.05]
[1659303812646,0.15,1705.3,1705.1,0.05]
[1659303812841,0.15,1705.3,1703.8,1.3115]
[1659303812842,9.0403,1705.2,1703.9,7.9208]
[1659303813047,0.2,1705.0,1704.3,3.5]
[1659303813223,0.4403,1704.9,1703.9,7.9208]
[1659303813427,0.4403,1704.9,1703.8,0.87]
[1659303813428,7.4,1704.6,1704.0,3.5]
[1659303813852,0.15,1704.5,1704.0,3.5]
[1659303815252,7.4,1704.2,1703.3,7.9208]
[1659303815414,0.05,1704.2,1703.3,3.5]
[1659303815773,0.05,1704.2,1703.6,3.5]
[1659303815912,0.45,1704.3,1703.6,3.5]
[1659303816260,0.15,1704.1,1703.6,3.71547848]
[1659303816914,0.15,1704.1,1703.6,3.66547848]
[1659303817114,0.3,1704.0,1703.6,3.66547848]
[1659303817526,0.34342496,1704.0,1703.7,3.5]
[1659303817724,0.34342496,1704.0,1703.8,2.89804672]
[1659303818723,0.21442496,1704.0,1703.9,9.39804672]
[1659303818915,0.05,1704.4,1704.0,1.2]
[1659303819111,8.1267,1705.1,1703.9,9.39804672]
[1659303819112,0.05,1704.7,1704.2,2.89804672]
[1659303819356,0.05,1704.9,1704.3,2.89804672]
[1659303819616,7.57923587,1704.9,1704.3,2.89804672]
[1659303819824,8.01953587,1704.9,1704.4,2.89804672]
[1659303820010,0.61953587,1704.9,1704.4,6.39804672]
[1659303820328,0.4403,1705.0,1704.6,2.89804672]
[1659303820502,2.8574,1705.2,1704.6,6.39804672]
[1659303820503,2.9074,1705.2,1704.6,6.39804672]
[1659303820677,2.9074,1705.2,1704.5,0.16547848]
[1659303820678,3.04196106,1705.2,1704.7,2.89804672]
[1659303821027,0.18456106,1705.2,1704.7,6.39804672]
[1659303821229,0.18456106,1705.2,1704.8,2.89804672]
[1659303821517,0.04263957,1704.9,1704.8,2.89804672]
[1659303821877,0.17720063,1705.2,1704.8,2.89804672]
[1659303822696,0.04264494,1705.1,1704.8,2.89804672]
[1659303823493,0.04264494,1705.1,1704.8,2.93811269]
[1659303823693,0.04264494,1705.1,1704.9,2.89804672]
[1659303824306,0.04264494,1705.1,1704.9,3.06556044]
[1659303824488,0.04264494,1705.1,1705.0,2.89804672]
[1659303824926,0.04264494,1705.1,1705.0,6.39804672]
[1659303825603,7.45,1705.5,1705.0,6.39804672]
[1659303825804,7.4,1705.5,1705.1,2.89804672]
[1659303826024,7.55,1705.3,1704.9,0.03998922]
[1659303826593,7.05,1705.3,1704.9,0.03998922]
[1659303826788,6.95,1705.3,1704.8,0.16751372]
[1659303827249,6.8,1705.3,1704.8,0.16751372]
[1659303827604,6.85,1705.5,1704.9,2.89804672]
[1659303827796,6.97720063,1705.5,1704.9,2.89804672]
[1659303828947,6.97720063,1705.5,1705.0,0.16751372]
[1659303829130,0.17720063,1705.5,1705.1,2.89804672]
[1659303829327,6.47720063,1705.5,1705.1,2.89804672]
[1659303829634,8.45624975,1705.6,1705.1,2.90558535]
[1659303829635,5.52744975,1705.6,1705.1,2.90558535]
[1659303829812,5.52744975,1705.6,1705.2,2.89804672]
[1659303830016,6.47720063,1705.5,1705.1,2.90558535]
[1659303830416,6.47720063,1705.5,1705.2,2.89804672]
[1659303831158,12.00465038,1705.6,1705.2,2.89804672]
[1659303831366,5.52744975,1705.6,1705.2,2.89804672]
[1659303832222,12.00465038,1705.6,1705.2,2.89804672]
[1659303832751,12.00465038,1705.6,1705.3,2.89804672]
[1659303833137,5.52744975,1705.6,1705.3,2.89804672]
[1659303834276,12.00465038,1705.6,1705.3,2.89804672]
[1659303834760,0.04185531,1705.6,1705.3,2.89804672]
[1659303834958,0.04185531,1705.6,1705.4,0.36069254]
[1659303835175,0.04185531,1705.6,1705.5,2.89804672]
[1659303837872,0.04185531,1705.6,1705.5,2.947867]
[1659303838035,11.77,1706.0,1705.5,12.860867]
[1659303838036,0.05,1706.0,1705.5,12.860867]
[1659303838273,6.47720063,1706.3,1705.5,12.860867]
[1659303838274,0.05,1706.2,1705.9,2.89804672]
[1659303838473,6.47720063,1706.3,1705.9,2.89804672]
[1659303838874,6.47720063,1706.3,1705.9,3.25071809]
[1659303839206,6.47720063,1706.3,1706.0,2.89804672]
[1659303839422,0.05,1706.6,1706.0,2.89804672]
[1659303839724,6.47720063,1706.1,1706.0,2.89804672]
[1659303840521,0.05,1706.5,1706.0,2.89804672]
[1659303840522,0.15,1706.2,1706.0,2.89804672]
[1659303841020,6.47720063,1706.3,1706.0,2.89804672]
[1659303841371,6.47720063,1706.3,1705.9,0.35267137]
[1659303841600,6.91720063,1706.3,1706.0,0.04230201]
[1659303842045,0.44,1706.3,1706.0,0.04230201]
[1659303842184,6.47720063,1706.2,1706.0,0.04230201]
[1659303842381,0.44,1706.3,1706.0,0.04230201]
[1659303842684,6.47720063,1706.2,1706.0,0.04230201]
[1659303842902,0.44,1706.3,1706.0,0.04230201]
[1659303844002,6.91720063,1706.3,1706.0,0.04230201]
[1659303844189,6.91720063,1706.3,1706.1,2.89804672]
[1659303844386,6.47720063,1706.3,1706.1,2.89804672]
[1659303844789,0.3,1706.4,1706.1,2.89804672]
[1659303844987,0.7399,1706.5,1706.1,2.89804672]
[1659303845388,6.47720063,1706.2,1706.1,2.89804672]
[1659303845591,6.47720063,1706.2,1706.1,2.92999939]
[1659303848418,0.3,1706.5,1706.1,2.92999939]
[1659303848618,0.3,1706.5,1706.2,2.89804672]
[1659303848817,6.47720063,1706.4,1706.2,2.89804672]
[1659303850720,6.47720063,1706.3,1706.2,2.89804672]
[1659303850882,6.47720063,1706.4,1706.2,2.89804672]
[1659303851088,8.38694764,1706.6,1706.2,2.89804672]
[1659303851273,6.47720063,1706.3,1706.2,2.89804672]
[1659303852013,0.35,1706.4,1706.3,0.03933852]
[1659303852202,7.12720063,1706.4,1706.3,0.03933852]
[1659303852399,6.77720063,1706.4,1706.3,0.03933852]
[1659303854022,6.77720063,1706.4,1706.3,0.07124657]
[1659303854412,6.47720063,1706.4,1706.3,0.07124657]
[1659303855697,6.77720063,1706.4,1706.3,0.07124657]
[1659303857897,0.15,1706.0,1705.9,0.05]
[1659303858098,6.47720063,1706.0,1705.6,3.0]
[1659303858313,6.47720063,1706.0,1705.3,0.05]
[1659303858314,6.47720063,1705.7,1705.3,0.05]
[1659303858516,0.35,1705.9,1705.0,0.05]
[1659303858517,0.15,1705.2,1705.0,0.05]
[1659303858700,0.15,1705.2,1704.9,3.5]
[1659303858901,6.62720063,1705.2,1704.8,0.34471435]
[1659303859204,6.62720063,1705.2,1704.9,2.89804672]
[1659303859205,0.15,1705.2,1704.9,2.89804672]
[1659303859405,6.47720063,1705.1,1704.9,2.89804672]
[1659303859906,0.15,1705.2,1704.9,2.89804672]
[1659303860341,0.15,1705.2,1705.0,3.0]
[1659303860544,0.15,1705.2,1705.1,2.89804672]
[1659303860714,0.15,1705.2,1705.1,5.89804672]
[1659303861630,6.62720063,1705.2,1705.1,5.93302859]
[1659303861830,6.62720063,1705.2,1705.1,6.51402859]
[1659303862778,6.62720063,1705.2,1705.1,5.93302859]
[1659303862951,6.62720063,1705.2,1705.1,0.03498187]
[1659303862952,0.15,1705.2,1705.1,0.03498187]
[1659303863155,6.62720063,1705.2,1705.1,0.03498187]
[1659303863333,6.62720063,1705.2,1705.1,2.93302859]
[1659303863534,0.15,1705.2,1705.1,3.51402859]
[1659303864480,0.15,1705.2,1705.1,3.31402859]
[1659303864688,0.15,1705.2,1705.1,2.76801046]
[1659303864868,6.47720063,1705.2,1705.1,0.03498187]
[1659303865667,6.47720063,1705.2,1705.1,0.04810007]
[1659303867249,6.47720063,1705.3,1705.1,2.94614679]
[1659303867443,6.47720063,1705.3,1705.2,2.89804672]
[1659303867643,6.47720063,1705.3,1705.1,3.29086114]
[1659303867842,2.853,1705.6,1705.1,3.29086114]
[1659303867843,6.47720063,1705.2,1705.1,3.29086114]
[1659303869402,6.47720063,1705.2,1705.1,2.94614679]
[1659303869553,6.62720063,1705.2,1705.1,0.04810007]
[1659303869753,6.92720063,1705.2,1705.1,0.04810007]
[1659303870593,6.77720063,1705.2,1705.1,0.04810007]
[1659303871354,6.77720063,1705.2,1705.1,0.01749093]
[1659303872759,6.77720063,1705.2,1705.1,2.91553765]
[1659303872960,6.77720063,1705.2,1705.1,0.01749093]
[1659303874292,6.77720063,1705.2,1705.1,2.91553765]
[1659303875362,6.47720063,1705.3,1705.1,3.51752677]
[1659303875562,6.47720063,1705.3,1705.2,2.89804672]
[1659303876729,2.853,1705.6,1705.2,2.89804672]
[1659303876931,6.47720063,1705.3,1705.2,2.89804672]
[1659303877084,6.52154296,1705.3,1705.2,2.89804672]
[1659303877630,0.05,1705.7,1705.3,0.044]
[1659303877922,6.47720063,1705.8,1705.4,2.93051731]
[1659303878124,6.47720063,1705.8,1705.5,2.90804672]
[1659303878334,6.47720063,1705.8,1705.6,2.89804672]
[1659303879313,2.822,1706.1,1705.6,2.89804672]
[1659303879523,6.47720063,1705.9,1705.7,2.89804672]
[1659303879715,6.77720063,1705.9,1705.7,2.89804672]
[1659303879906,0.3,1705.9,1705.7,2.89804672]
[1659303880337,2.772,1706.1,1705.7,2.89804672]
[1659303880618,3.072,1706.1,1705.7,2.89804672]
[1659303881088,6.47720063,1705.8,1705.7,2.89804672]
[1659303881291,3.072,1706.1,1705.7,2.89804672]
[1659303881492,6.47720063,1705.8,1705.7,2.89804672]
[1659303881689,3.072,1706.1,1705.7,2.89804672]
[1659303882707,6.47720063,1705.8,1705.7,2.89804672]
[1659303883472,0.3,1706.1,1705.7,2.89804672]
[1659303883611,0.2,1706.4,1705.8,2.89804672]
[1659303883812,0.15,1706.0,1705.8,2.89804672]
[1659303884008,6.47720063,1705.9,1705.8,2.89804672]
[1659303884251,6.47720063,1705.9,1705.7,2.93627903]
[1659303884448,0.15,1706.0,1705.8,2.89804672]
[1659303884659,6.47720063,1705.9,1705.8,2.89804672]
[1659303884864,6.4739492,1705.9,1705.8,2.89804672]
[1659303886244,6.4739492,1705.9,1705.8,2.93621713]
[1659303886924,6.4739492,1705.9,1705.8,0.03817041]
[1659303888974,6.4239492,1705.9,1705.8,0.03817041]
[1659303889696,6.4239492,1705.9,1705.8,2.93621713]
[1659303891969,0.05,1706.3,1705.8,2.93621713]
[1659303892167,3.2906,1706.4,1705.9,2.89804672]
[1659303892370,6.4239492,1706.1,1706.0,0.41720936]
[1659303892684,9.4145492,1706.4,1706.1,2.89804672]
[1659303892879,2.9906,1706.4,1706.1,2.89804672]
[1659303893076,2.9906,1706.4,1706.1,3.07403108]
[1659303893283,2.9906,1706.4,1706.2,2.89804672]
[1659303893477,6.4239492,1706.4,1706.2,2.89804672]
[1659303893713,6.4239492,1706.3,1706.2,2.89804672]
[1659303894283,6.4239492,1706.3,1706.1,2.9408325]
[1659303895296,8.2483,1706.5,1706.1,2.9408325]
[1659303895479,6.4239492,1706.4,1706.1,2.9408325]
[1659303896067,14.5222492,1706.5,1706.2,0.35434124]
[1659303896377,6.4239492,1706.4,1706.2,3.25238796]
[1659303896576,6.4239492,1706.4,1706.3,2.89804672]
[1659303896786,3.5717,1706.6,1706.3,2.89804672]
[1659303896987,13.4231,1706.8,1706.3,2.89804672]
[1659303897369,13.7231,1706.8,1706.3,2.89804672]
[1659303897569,6.7239492,1706.5,1706.3,2.89804672]
[1659303897875,6.4239492,1706.5,1706.3,2.89804672]
[1659303898313,6.4239492,1706.5,1706.3,2.94076045]
[1659303898538,6.4239492,1706.5,1706.4,2.89804672]
[1659303902129,6.4239492,1706.5,1706.4,2.94068843]
[1659303902503,6.4239492,1706.5,1706.4,0.00064171]
[1659303902504,6.5739492,1706.5,1706.4,0.00064171]
[1659303903137,6.5739492,1706.5,1706.4,0.08389306]
[1659303903349,6.5739492,1706.5,1706.4,0.04189306]
[1659303904209,6.5739492,1706.5,1706.4,0.04125135]
[1659303904408,6.8739492,1706.5,1706.0,0.05]
[1659303904649,6.4239492,1706.1,1706.0,2.89804672]
[1659303904945,6.4239492,1706.1,1705.9,2.89804672]
[1659303905154,6.4239492,1706.0,1705.9,2.89804672]
[1659303905305,6.4239492,1706.0,1705.8,0.37571627]
[1659303905506,6.4239492,1705.9,1705.4,3.55]
[1659303905734,6.4239492,1705.9,1705.4,3.84471435]
[1659303905936,6.4239492,1705.9,1705.4,6.74276107]
[1659303906105,0.05,1706.1,1705.4,3.84471435]
[1659303906106,6.5739492,1705.7,1705.4,3.84471435]
[1659303906731,0.15,1705.7,1705.4,3.84471435]
[1659303906918,0.15,1705.7,1705.3,0.03101099]
[1659303906919,6.4239492,1705.6,1705.3,0.03101099]
[1659303907119,6.4239492,1705.6,1705.4,2.89804672]
[1659303908029,0.25,1705.9,1705.4,2.89804672]
[1659303908030,6.4239492,1705.5,1705.4,2.89804672]
[1659303908956,6.4239492,1705.5,1705.1,0.34471435]
[1659303909116,0.04477711,1705.6,1705.1,3.24276107]
[1659303909117,6.4239492,1705.2,1705.1,3.24276107]
[1659303909719,6.4239492,1705.4,1705.1,3.24276107]
[1659303910479,6.46872631,1705.6,1705.2,2.89804672]
[1659303910661,6.46872631,1705.6,1705.3,0.34471435]
[1659303910866,6.46872631,1705.6,1705.4,2.89804672]
[1659303911681,6.46872631,1705.6,1705.2,0.17598436]
[1659303911682,0.731,1705.5,1705.2,0.17598436]
[1659303911968,0.731,1705.5,1704.9,0.05]
[1659303911969,6.4239492,1705.3,1704.9,0.05]
[1659303912295,6.4239492,1705.3,1705.0,2.89804672]
[1659303912468,6.4239492,1705.2,1705.1,3.0]
[1659303912670,6.4239492,1705.2,1705.1,5.89804672]
[1659303913069,6.42111327,1705.2,1705.1,5.89804672]
[1659303914222,6.42111327,1705.2,1705.1,3.0]
[1659303914409,6.42111327,1705.2,1704.8,0.37573445]
[1659303914614,0.04478471,1705.3,1704.9,2.89804672]
[1659303914842,6.42111327,1705.1,1705.0,3.0]
[1659303915310,6.42111327,1705.1,1705.0,0.6889]
[1659303915513,6.42111327,1705.1,1704.6,0.05]
[1659303915694,6.42111327,1704.8,1704.6,2.89804672]
[1659303916717,6.42111327,1704.9,1704.6,2.89804672]
[1659303916919,6.42111327,1704.8,1704.6,2.89804672]
[1659303917117,0.09650174,1705.1,1704.6,2.89804672]
[1659303917384,6.42111327,1704.8,1704.6,2.89804672]
[1659303917538,0.6255466,1705.0,1704.6,2.89804672]
[1659303917843,6.42111327,1704.9,1704.6,2.89804672]
[1659303918756,6.68601397,1705.0,1704.6,2.89804672]
[1659303918922,6.42111327,1704.9,1704.6,2.89804672]
[1659303919447,6.42111327,1704.7,1704.6,2.89804672]
[1659303919632,6.42111327,1704.7,1704.4,18.00078844]
[1659303919811,6.42111327,1704.7,1704.5,3.0]
[1659303920011,6.88601397,1705.0,1704.4,12.10274172]
[1659303920012,6.42111327,1704.6,1704.4,12.10274172]
[1659303920245,6.42111327,1704.6,1704.4,0.38274172]
[1659303920402,6.42111327,1704.6,1704.4,0.007]
[1659303920609,11.6133,1704.9,1704.4,0.007]
[1659303920804,6.42111327,1704.5,1704.4,0.007]
[1659303921046,6.57111327,1704.5,1704.4,0.007]
[1659303921284,6.77111327,1704.5,1704.4,0.007]
[1659303921492,7.07111327,1704.5,1704.4,0.007]
[1659303922901,7.51161327,1704.5,1704.4,0.007]
[1659303923062,0.15,1704.3,1704.0,0.05]
[1659303923244,0.5905,1704.3,1703.7,0.05]
[1659303923445,6.42111327,1703.8,1703.5,0.05]
[1659303923688,6.42111327,1703.6,1703.2,0.05]
[1659303923894,6.42111327,1703.6,1703.1,0.37777382]
[1659303924245,0.05,1703.8,1703.2,2.89804672]
[1659303924444,6.42111327,1703.5,1703.2,2.89804672]
[1659303924952,0.05,1703.8,1703.3,0.37776993]
[1659303925158,6.42111327,1703.9,1703.4,2.89804672]
[1659303925450,6.42111327,1703.9,1703.3,3.27581665]
[1659303925451,0.3,1703.9,1703.3,3.27581665]
[1659303925605,0.35,1704.0,1703.3,3.27581665]
[1659303925807,0.45,1704.0,1703.3,3.27581665]
[1659303926022,6.42111327,1703.7,1703.3,3.27581665]
[1659303926321,0.05,1703.9,1703.3,3.27581665]
[1659303926519,6.72111327,1703.8,1703.3,3.27581665]
[1659303927512,6.42111327,1703.4,1703.3,3.27581665]
[1659303927727,6.42111327,1703.4,1703.0,0.17598436]
[1659303927956,6.42111327,1703.1,1702.8,3.5]
[1659303928110,0.15,1703.3,1702.6,0.34945355]
[1659303928310,6.42111327,1703.0,1702.7,2.89804672]
[1659303928996,6.42111327,1703.0,1702.6,2.89804672]
[1659303928997,6.42111327,1702.8,1702.6,2.89804672]
[1659303929275,6.42111327,1702.8,1702.2,0.05]
[1659303929276,6.42111327,1702.7,1702.2,0.05]
[1659303929451,6.42111327,1702.3,1702.0,0.05]
[1659303929660,0.05,1702.6,1701.9,0.34945551]
[1659303929988,6.42111327,1702.2,1701.9,0.34945551]
[1659303930196,6.42111327,1702.3,1701.9,0.34945551]
[1659303930345,0.05,1702.5,1701.9,0.34945551]
[1659303930684,6.42111327,1702.2,1701.9,0.34945551]
[1659303930884,5.44355741,1702.4,1701.9,0.35255233]
[1659303931056,6.42111327,1702.3,1701.9,0.35255233]
[1659303931247,5.44355741,1702.4,1701.9,0.00309682]
[1659303931248,6.42111327,1702.0,1701.9,0.00309682]
[1659303931444,5.74355741,1702.4,1701.9,0.00309682]
[1659303931445,6.38455741,1702.4,1701.9,0.00309682]
[1659303931644,5.74355741,1702.4,1701.7,0.05]
[1659303931844,5.74355741,1702.4,1701.6,0.37073318]
[1659303931845,6.42111327,1702.0,1701.6,0.42073318]
[1659303932088,0.15,1701.8,1701.6,0.37073318]
[1659303933089,6.47111327,1702.1,1701.6,0.37073318]
[1659303933269,3.4799,1702.3,1701.6,0.37073318]
[1659303933452,6.42111327,1701.9,1701.6,0.37073318]
[1659303933662,0.05,1702.2,1701.6,0.37073318]
[1659303933858,6.42111327,1702.1,1701.6,0.37073318]
[1659303934061,3.4299,1702.3,1701.6,0.37073318]
[1659303934062,9.5929,1702.3,1701.6,0.37073318]
[1659303934283,6.42111327,1701.9,1701.6,0.37073318]
[1659303934905,0.35,1702.1,1701.6,0.37073318]
[1659303935053,2.89804672,1702.0,1701.6,0.37073318]
[1659303935256,6.42111327,1701.8,1701.6,0.37073318]
[1659303935455,6.46593698,1701.8,1701.6,0.37073318]
[1659303935703,0.04482371,1701.8,1701.6,0.37073318]
[1659303935865,6.46593698,1701.8,1701.6,0.37073318]
[1659303936289,0.04482371,1701.8,1701.6,0.37073318]
[1659303936488,0.04482371,1701.8,1701.5,3.00313314]
[1659303936489,0.003,1701.5,1701.2,0.05]
[1659303936709,0.003,1701.5,1701.0,0.3]
[1659303936710,6.42111327,1701.4,1701.0,0.25]
[1659303936926,6.42111327,1701.3,1701.0,0.25]
[1659303937318,6.57111327,1701.3,1701.0,0.25]
[1659303937887,6.42111327,1701.4,1701.0,0.25]
[1659303938087,6.42111327,1701.3,1701.0,0.25]
[1659303938327,3.6121,1701.6,1701.0,0.25]
[1659303938488,6.42111327,1701.4,1701.0,0.25]
[1659303938689,0.15,1701.2,1701.0,0.25]
[1659303938928,14.08561327,1701.5,1701.0,0.25]
[1659303938929,7.7145,1701.5,1701.0,0.25]
[1659303939132,7.6645,1701.5,1701.0,0.25]
[1659303940029,8.03523318,1701.5,1701.0,0.25]
[1659303940462,8.15731314,1701.5,1701.0,0.25]
[1659303940879,0.12207996,1701.5,1701.1,3.5]
[1659303941073,0.12207996,1701.5,1701.2,6.5]
[1659303941444,0.12207996,1701.5,1701.2,3.0]
[1659303942264,0.12207996,1701.5,1701.0,3.25]
[1659303942533,0.12207996,1701.5,1701.1,2.89804672]
[1659303942733,0.12207996,1701.5,1701.2,3.0]
[1659303942973,0.12207996,1701.5,1701.3,2.89804672]
[1659303943276,0.12207996,1701.5,1701.4,3.0]
[1659303943579,0.12207996,1701.5,1701.4,9.39804672]
[1659303943796,0.04482371,1701.8,1701.5,0.061]
[1659303944007,0.04482371,1701.8,1701.7,3.5]
[1659303944177,0.04482371,1701.8,1701.7,9.44804672]
[1659303944178,0.00082371,1701.8,1701.7,9.44804672]
[1659303944705,0.00082371,1701.8,1701.7,9.39804672]
[1659303945273,0.00082371,1701.8,1701.7,13.12905122]
[1659303945599,0.05942134,1701.8,1701.7,16.82093795]
[1659303945906,0.3255466,1702.6,1701.9,9.598]
[1659303946176,0.3255466,1702.6,1702.5,2.89804672]
[1659303946323,0.0005466,1702.6,1702.5,2.89804672]
[1659303946483,6.42111327,1703.5,1702.5,13.22803108]
[1659303946682,2.8839,1703.8,1703.1,2.89804672]
[1659303946886,6.42111327,1703.7,1703.2,5.89804672]
[1659303947113,9.30501327,1703.8,1703.3,2.89804672]
[1659303947314,2.8839,1703.8,1703.3,2.89804672]
[1659303947622,9.30501327,1703.8,1703.3,2.89804672]
[1659303947767,6.57111327,1703.4,1703.1,0.05]
[1659303947973,6.57111327,1703.4,1703.1,2.89804672]
[1659303947974,6.42111327,1703.2,1703.1,2.89804672]
[1659303948128,6.42111327,1703.2,1702.9,2.89804672]